{"text_format":"1","workbook":"xlsx","n_sheets":1,"sheets":["09"],"not_rendered":{"charts":0,"images":0,"macros":1,"external_links":0,"defined_names":0,"comments":0,"pivot_tables":0},"unopened":[],"bounds":{"document_bytes":16777216,"sheet_cells":100000,"rows_first":2000,"rows_last":500,"rows_between":2000,"halvings":0,"cell_chars":16384,"cell_head_chars":4096},"cells_cut":0,"cells_raw":0,"read":"whole","date_system":"1900"}

{"sheet":"09","index":0,"n_rows":29,"n_cols":10,"rows_kept":29,"cut":false,"hidden":false,"merged":[[18,0,18,2],[19,0,19,2],[11,0,11,9],[10,0,10,9],[22,0,22,9],[0,0,0,9],[1,0,1,9],[3,0,3,9],[4,0,4,9],[9,2,9,6],[5,0,5,9],[2,0,2,9],[20,0,20,2],[20,3,20,9],[21,0,21,9],[23,0,23,9],[24,0,24,9]]}
["    BHARAT HEAVY ELECTRICAL LIMITED , JHANSI              "]
["FACTORY CIVIL DEPARTMENT"]
["Price bid "]
["Name of work -Signage board Painting and Writing/lettering work in factory area."]
["Tender Enquiry No- FCX/TW/24/12"]
["Part A-DSR-ITEM "]
["Sl. No.","DSR 2016 ","Description of Work","% Allocation (Item-wise)","Unit ","Quantity ","Analysed rate of DSR-2016","Amount (in Rs.)","Rate per Unit (in Rs.)","Amount (in Rs.)"]
[1,"16.61.1","Manufacturing, supplying and fixing retro reflective overhead signage boards made up of 2 mm thick aluminium sheet, face to be fully covered with high intensity and encapsulated lens type heat activated  retro reflective sheeting conforming to type - III of ASTM-D-4956-01 as approved by Engineer-in-charge, letters, borders etc. as per IRC : 67-2001 in silver white with blue colour back ground and with high intensity grade, pasted on substrate by pressure sensitive adhesive backing which shall be activated by applying pressure conforming to class II of ASTM-D-4956-01 and fixing the same to the plate of structural frame work by means of suitable sized aluminium alloys,  rivets or bolts & nuts @ 300 mm centre to centre all along the periphery as well as in two vertical rows along with theft resistant measures, including the cost of painting with two or more coats of  epoxy paint in grey colour on the back side of aluminium sheet including appropriate priming coat. The rate includes the cost of rounding off the corners, lowering down the structural frame work  from the gantry, fixing and erecting the same in position all complete  as per drawings, specification and direction of the engineer-incharge. ( Structural frame work including M.S. plate to be provided separately. Rectangular area of the sheet only shall be measured for payment).  Overhead informatory road signage",{"$f":"H8*0.65/469145.62","v":0.3469650223649417},"Sqm ",50,5008.5267857142899,{"$f":"G8*F8","v":250426.33928571449},{"$f":"ROUND(J8/F8,4)","v":0},{"$f":"$J$20*D8","v":0}]
[null,null,"Sub Total \"A1\" ",{"$f":"SUM(D8)","v":0.3469650223649417},null,null,null,{"$f":"SUM(H8)","v":250426.33928571449},null,{"$f":"SUM(J8)","v":0}]
[]
[]
["Part B-Non DSR Items"]
["Sl. No.",null,"Description of Work","% Allocation (Item-wise)","Unit ","Quantity ","Analysed rate of DSR-2016","Amount (in Rs.)","Rate per Unit (in Rs.)","Amount (in Rs.)"]
[2,"NS1","Writing work on the board /name plate and Plastered surface including prepartion of base surface of the size upto  3 sqft  as per direction of Engineer-In charge. ",{"$f":"H14/469145.62","v":0.12038053344716296},"Nos.",400,141.19,{"$f":"G14*F14","v":56476},{"$f":"ROUND(J14/F14,4)","v":0},{"$f":"$J$20*D14","v":0}]
[3,"NS2","Writing work on the board /name plate and Plastered surface  including prepartion of base surface of the size  above 3 sqft. as per direction of Engineer-In charge.(Mode of Measurment- Area of the prepared based surface of the writter side will be measure. ",{"$f":"H15/469145.62","v":0.14445408229538623},"Sqft.",1500,45.18,67770,{"$f":"ROUND(J15/F15,4)","v":0},{"$f":"$J$20*D15","v":0}]
[4,"NS3","Painting Statues of the height of upto 5-10 feet and max. 5 feet wide ",0.1203815992143335,"Nos.",30,1882.55,56476.5,0,0]
[5,"NS4","Extra for height above 7 feet upto for writing work. (Applicable for  item no.2 only)",1.2034642889770557E-2,"Sqft.",600,9.41,5646,0,0]
[6,"NS5","Manufacturing and supplying of PVC signage boards made up of 2-3 mm thick PVC sheet, face to be fully covered with high intensity vinyl sheeting as approved by Engineer-in-charge, The rate includes the cost of rounding off the corners, fixing the printed vinyl sheet over PVC sheet all complete as per drawings, specification and direction of the Engineer-in-charge. The material to be printed over the sheet shall be intimated by BHEL at the time of execution. ",{"$f":"H18/469145.62","v":0.25578412093029879},"Sqm ",96,1250,120000,0,0]
["Sub Total \"B\" ",null,null,{"$f":"SUM(D14:D18)","v":0.65303497877695205},null,null,null,{"$f":"SUM(H14:H18)","v":306368.5},null,{"$f":"SUM(J14:J18)","v":0}]
["Total \"C=A+B\" ",null,null,{"$f":"D9+D19","v":1.0000000011418937},null,null,null,{"$f":"H19+H11","v":306368.5}]
["In words ",null,null,{"$f":"rup(J20)","v":0}]
[]
["Note -GST extra as applicable"]
["1. Bidder has to quote in above unlocked cell (J-20) only. Item rate shall be calculated automatically. Calculated item rates upto four  decimal points may be adjusted w.r.t. gross total amount and it shall be the itemwise final rate for  execution of contract and all other purposes."]
["2. Quoted gross total amount should be considered only if quoted in this excel sheet and print out of this should only be considered for evaluation.  If Price is quoted in any other format other than the Excel Sheet enclosed to the NIT , the offer of the bidder  will be rejected."]
[]
[]
[]
[null,null,null,null,null,null,null,null,"(Signature and Seal of  Contractor  )"]